bitfinex-derivatives/quotes_BNBF0:USTF0_20251203
["timestamp","ask_amount","ask_price","bid_price","bid_amount"]
[1764786624011,2.75553825,906.51,904.74,0.73634957]
[1764786624316,0.19220307,905.97,904.75,0.73634957]
[1764786624515,2.75553825,906.51,904.76,0.73634957]
[1764786624713,0.19220201,905.67,904.77,0.73634957]
[1764786624911,2.75553825,906.52,904.78,0.73634957]
[1764786625217,2.75553825,906.54,904.79,0.73634957]
[1764786625515,2.75553825,906.54,904.8,0.73634957]
[1764786625712,2.75553825,906.53,904.81,0.73634957]
[1764786625915,2.75553825,906.53,904.82,0.73634957]
[1764786626117,2.75553825,906.54,904.83,0.73634957]
[1764786626416,0.19219352,906.11,904.84,0.73634957]
[1764786626619,0.19219352,906.11,904.85,0.73634957]
[1764786626916,0.19219352,906.11,904.86,0.73634957]
[1764786627111,0.19219352,906.11,904.87,0.73634957]
[1764786627314,0.19219352,906.11,904.88,0.73634957]
[1764786627516,0.19219352,906.11,904.89,0.73634957]
[1764786627717,0.19219352,906.11,904.9,0.73634957]
[1764786628012,0.19219352,906.11,904.91,0.73634957]
[1764786628214,0.19219352,906.11,904.61,0.82523056]
[1764786628417,0.19219352,906.11,904.62,0.73504528]
[1764786628716,0.19219352,906.11,904.63,0.73504528]
[1764786628913,0.19219352,906.11,904.64,0.73504528]
[1764786629114,0.19219352,906.11,904.65,0.73504528]
[1764786629314,0.19219352,906.11,904.66,0.73504528]
[1764786629618,0.19219352,906.11,904.67,0.73504528]
[1764786629818,0.19219352,906.11,904.68,0.73504528]
[1764786630017,0.19219352,906.11,904.69,0.73504528]
[1764786630216,0.19219352,906.11,904.7,0.73504528]
[1764786630413,0.19219352,906.11,904.71,0.73504528]
[1764786630618,0.19219352,906.11,904.72,0.73504528]
[1764786630818,0.19219352,906.11,904.73,0.73504528]
[1764786631017,0.19219352,906.11,904.74,0.73504528]
[1764786631216,0.19219352,906.11,904.75,0.73504528]
[1764786631414,0.19219352,906.11,904.76,0.73504528]
[1764786631615,0.19219352,906.11,904.77,0.73504528]
[1764786631919,0.19219352,906.11,904.78,0.73504528]
[1764786632121,0.19219352,906.11,904.79,0.73504528]
[1764786632321,0.19219352,906.11,904.8,0.73504528]
[1764786632621,0.19219352,906.11,904.81,0.73504528]
[1764786632815,0.19219352,906.11,904.82,0.73504528]
[1764786633016,0.19219352,906.11,904.58,7.97728607]
[1764786633220,0.19219352,906.11,904.59,0.73502887]
[1764786633417,0.19219352,906.11,904.6,0.73502887]
[1764786633617,0.19219352,906.11,904.61,0.73502887]
[1764786633820,0.19219352,906.11,904.62,0.73502887]
[1764786634021,0.19219352,906.11,904.63,0.73502887]
[1764786634224,0.19219352,906.11,904.64,0.73502887]
[1764786634521,0.19219352,906.11,904.65,0.73502887]
[1764786634724,0.19219352,906.11,904.66,0.73502887]
[1764786634918,0.19219352,906.11,904.67,0.73502887]
[1764786635118,0.19219352,906.11,904.68,0.73502887]
[1764786635324,0.19219352,906.11,904.69,0.73502887]
[1764786635520,0.19219352,906.11,904.7,0.73502887]
[1764786635724,0.19219352,906.11,904.71,0.73502887]
[1764786635921,0.19219352,906.11,904.72,0.73502887]
[1764786636225,0.19219352,906.11,904.69,2.349]
[1764786636226,0.19219352,906.11,904.73,0.73502887]
[1764786636421,0.19219352,906.11,904.74,0.73502887]
[1764786636621,0.19219352,906.11,904.75,0.73502887]
[1764786636823,0.19219352,906.11,904.76,0.73502887]
[1764786637020,0.19219352,906.11,904.69,2.349]
[1764786637226,0.19219352,906.11,904.7,0.73506672]
[1764786637422,0.19219352,906.11,904.71,0.73506672]
[1764786637625,0.19219352,906.11,904.69,2.349]
[1764786642229,0.19219352,906.11,904.7,0.73537671]
[1764786642429,0.19219352,906.11,904.69,2.349]
[1764786642725,0.19219352,906.11,904.7,0.73538134]
[1764786642923,0.19219352,906.11,904.69,2.349]
[1764786643123,0.19219352,906.11,904.7,0.73538144]
[1764786643328,0.19219352,906.11,904.69,2.349]
[1764786643528,0.19219352,906.11,904.7,0.73541568]
[1764786643725,0.19219352,906.11,904.69,2.349]
[1764786644431,2.75553825,905.89,904.69,2.349]
[1764786644831,2.75553825,905.9,904.69,2.349]
[1764786645341,1.09517113,904.93,904.69,2.349]
[1764786646234,1.09517113,904.94,904.69,2.349]
[1764786647346,1.09517113,904.95,904.69,2.349]
[1764786647842,1.09517113,904.97,904.69,2.349]
[1764786648146,1.09517113,904.98,904.69,2.349]
[1764786648543,1.09517113,905.03,904.69,2.349]
[1764786648744,1.09517113,905.04,904.69,2.349]
[1764786649548,1.09517113,905.15,904.69,2.349]
[1764786650748,1.09517113,905.16,904.69,2.349]
[1764786651649,1.09517113,905.16,904.43,1.734]
[1764786651845,1.09517113,905.17,904.43,1.734]
[1764786652149,1.09517113,905.16,904.43,1.734]
[1764786652350,1.09517113,905.18,904.43,1.734]
[1764786653547,1.09517113,905.18,904.44,2.31]
[1764786653950,1.09517113,905.17,904.44,2.31]
[1764786658155,1.09517113,905.15,904.44,2.31]
[1764786658353,1.09517113,905.11,904.44,2.31]
[1764786659156,1.09517113,905.1,904.44,2.31]
[1764786659352,1.09517113,905.1,904.45,1.488]
[1764786659656,1.09517113,905.05,904.45,1.488]
[1764786660751,1.09517113,905.01,904.45,1.488]
[1764786661254,1.09517113,904.92,904.45,1.488]
[1764786661457,1.09517113,904.89,904.45,1.488]
[1764786661758,1.09517113,904.9,904.45,1.488]
[1764786662156,1.09517113,904.81,904.45,1.488]
[1764786662456,1.09517113,904.76,904.45,1.488]
[1764786663256,1.09517113,904.77,904.45,1.488]
[1764786663655,1.09517113,904.79,904.45,1.488]
[1764786664256,1.09517113,904.8,904.45,1.488]
[1764786665261,1.09517113,904.81,904.45,1.488]
[1764786665860,1.09517113,904.82,904.45,1.488]
[1764786666160,1.09517113,904.88,904.45,1.488]
[1764786667256,1.09517113,904.89,904.45,1.488]
[1764786668361,1.09517113,904.9,904.45,1.488]
[1764786669259,1.09517113,904.91,904.45,1.488]
[1764786670461,1.09517113,904.92,904.45,1.488]
[1764786671367,1.09517113,904.93,904.45,1.488]
[1764786672263,0.01044914,905.83,904.45,1.488]
[1764786672264,1.09517113,905.0,904.45,1.488]
[1764786673267,1.09517113,905.01,904.45,1.488]
[1764786675166,1.09517113,905.02,904.45,1.488]
[1764786676368,1.09517113,905.03,904.45,1.488]
[1764786678065,1.09517113,905.31,904.45,1.488]
[1764786678271,1.09517113,905.37,904.45,1.488]
[1764786678766,1.09517113,905.35,904.45,1.488]
[1764786678965,1.09517113,905.31,904.45,1.488]
[1764786679168,1.09517113,905.3,904.45,1.488]
[1764786679468,1.09517113,905.26,904.45,1.488]
[1764786679674,1.09517113,905.24,904.45,1.488]
[1764786680775,1.09517113,905.23,904.45,1.488]
[1764786681375,1.09517113,905.22,904.45,1.488]
[1764786682277,1.09517113,905.17,904.45,1.488]
[1764786682777,1.09517113,905.09,904.45,1.488]
[1764786684173,1.09517113,905.08,904.45,1.488]
[1764786685073,1.09517113,905.07,904.45,1.488]
[1764786685274,1.09517113,904.97,904.45,1.488]
[1764786687180,1.09517113,904.96,904.45,1.488]
[1764786688176,1.09517113,904.95,904.45,1.488]
[1764786689182,1.09517113,904.94,904.45,1.488]
[1764786689678,1.09517113,904.96,904.45,1.488]
[1764786690084,1.09517113,904.95,904.45,1.488]
[1764786691380,1.09517113,904.93,904.45,1.488]
[1764786691582,1.09517113,904.92,904.45,1.488]
[1764786692185,1.09517113,904.91,904.45,1.488]
[1764786693086,1.09517113,904.9,904.45,1.488]
[1764786693287,1.09517113,904.89,904.45,1.488]
[1764786694283,1.09517113,904.87,904.45,1.488]
[1764786695284,1.09517113,904.86,904.45,1.488]
[1764786696290,1.09517113,904.84,904.45,1.488]
[1764786697291,1.09517113,904.82,904.45,1.488]
[1764786697891,1.09517113,904.83,904.45,1.488]
[1764786698193,1.09517113,904.82,904.45,1.488]
[1764786699095,1.09517113,904.83,904.45,1.488]
[1764786699394,1.09517113,904.82,904.45,1.488]
[1764786700093,1.09517113,904.81,904.45,1.488]
[1764786700596,1.09517113,904.8,904.45,1.488]
[1764786701196,1.09517113,904.83,904.45,1.488]
[1764786702196,1.09517113,904.77,904.45,1.488]
[1764786703096,1.09517113,904.75,904.45,1.488]
[1764786704196,1.64275669,904.91,904.45,1.488]
[1764786704197,1.09517113,904.73,904.45,1.488]
[1764786710203,1.64275669,904.89,904.45,1.488]
[1764786710204,1.09517113,904.72,904.45,1.488]
[1764786712204,1.09517113,904.79,904.45,1.488]
[1764786714203,1.09517113,904.78,904.45,1.488]
[1764786715213,1.09517113,904.76,904.45,1.488]
[1764786715409,3.85775356,905.92,904.45,1.488]
[1764786715410,1.09517113,904.66,904.45,1.488]
[1764786716408,1.09517113,904.62,904.45,1.488]
[1764786717304,1.09517113,904.61,904.45,1.488]
[1764786718409,1.09517113,904.61,903.7,0.82502627]
[1764786719209,1.09517113,904.6,903.7,0.82502627]
[1764786719411,1.09517113,904.61,903.7,0.82502627]
[1764786720005,1.09517113,904.48,903.58,0.82502627]
[1764786721109,1.09517113,904.49,903.57,0.82502627]
[1764786722312,1.09517113,904.49,903.56,0.82502627]
[1764786722510,1.09517113,904.49,903.56,2.95602627]
[1764786722709,1.09517113,904.42,903.56,2.131]
[1764786723110,1.09517113,904.44,903.56,2.131]
[1764786724210,1.09517113,904.46,903.56,2.131]
[1764786725311,1.09517113,904.47,903.56,2.131]
[1764786726208,1.09517113,904.48,903.56,2.131]
[1764786727114,1.09517113,904.46,903.56,2.131]
[1764786727315,1.09517113,904.39,903.56,2.131]
[1764786727614,1.09517113,904.34,903.56,2.131]
[1764786727815,1.09517113,904.3,903.56,2.131]
[1764786728114,1.09517113,904.32,903.56,2.131]
[1764786728414,1.09517113,904.33,903.56,2.131]
[1764786729216,1.09517113,904.35,903.56,2.131]
[1764786730420,1.09517113,904.36,903.56,2.131]
[1764786730713,1.09517113,904.25,903.56,2.131]
[1764786731212,1.09517113,904.28,903.56,2.131]
[1764786732212,1.09517113,904.3,903.56,2.131]
[1764786732417,1.09517113,904.29,903.56,2.131]
[1764786733214,1.09517113,904.32,903.56,2.131]
[1764786734115,1.09517113,904.33,903.56,2.131]
[1764786734420,1.09517113,904.33,903.49,7.42618818]
[1764786735218,1.09517113,904.35,903.49,7.42618818]
[1764786735518,1.09517113,904.36,903.49,7.42618818]
[1764786736319,1.09517113,904.22,903.49,7.42618818]
[1764786736619,1.09517113,904.19,903.49,7.42618818]
[1764786737219,1.09517113,904.22,903.49,7.42618818]
[1764786738120,1.09517113,904.29,903.49,7.42618818]
[1764786738320,1.09517113,904.28,903.49,7.42618818]
[1764786738821,1.09517113,904.28,903.42,2.044]
[1764786739217,1.09517113,904.3,903.42,2.044]
[1764786739821,1.09517113,904.34,903.42,2.044]
[1764786740321,1.09517113,904.36,903.42,2.044]
[1764786740522,1.09517113,904.4,903.42,2.044]
[1764786742123,1.09517113,904.41,903.42,2.044]
[1764786742325,1.09517113,904.35,903.42,2.044]
[1764786743422,1.09517113,904.36,903.42,2.044]
[1764786744121,1.09517113,904.4,903.42,2.044]
[1764786745223,1.09517113,904.41,903.42,2.044]
[1764786747423,1.09517113,904.42,903.42,2.044]
[1764786749325,1.09517113,904.43,903.42,2.044]
[1764786749821,5.27105773,905.11,903.42,2.044]
[1764786749822,1.09517113,904.42,903.42,2.044]
[1764786752123,1.09517113,904.43,903.42,2.044]
[1764786752324,1.09517113,904.36,903.42,2.044]
[1764786753325,1.09517113,904.37,903.42,2.044]
[1764786755225,1.09517113,904.36,903.42,2.044]
[1764786756730,1.09517113,904.35,903.42,2.044]
[1764786758726,1.09517113,904.35,903.34,1.521]
[1764786759425,1.09517113,904.34,903.34,1.521]
[1764786761331,1.09517113,904.33,903.34,1.521]
[1764786762132,1.09517113,904.34,903.34,1.521]
[1764786762431,1.09517113,904.4,903.35,1.557]
[1764786763333,1.09517113,904.39,903.35,1.557]
[1764786764335,1.09517113,904.38,903.35,1.557]
[1764786765436,1.09517113,904.37,903.35,1.557]
[1764786766236,1.09517113,904.36,903.35,1.557]
[1764786767238,1.09517113,904.34,903.35,1.557]
[1764786767440,1.09517113,904.34,903.36,2.009]
[1764786768342,1.09517113,904.33,903.36,2.009]
[1764786769242,1.09517113,904.31,903.36,2.009]
[1764786770237,1.09517113,904.29,903.36,2.009]
[1764786770442,1.09517113,904.33,903.36,2.009]
[1764786771142,1.09517113,904.32,903.36,2.009]
[1764786771439,1.09517113,904.34,903.36,2.009]
[1764786772442,1.09517113,904.32,903.36,2.009]
[1764786773343,1.09517113,904.3,903.36,2.009]
[1764786774342,1.09517113,904.28,903.36,2.009]
[1764786775239,1.09517113,904.25,903.36,2.009]
[1764786776245,1.09517113,904.23,903.36,2.009]
[1764786776541,1.09517113,904.24,903.36,2.009]
[1764786777345,1.09517113,904.22,903.36,2.009]
[1764786778245,1.09517113,904.2,903.36,2.009]
[1764786779345,1.09517113,904.17,903.36,2.009]
[1764786781148,1.09517113,904.16,903.36,2.009]
[1764786781848,1.09517113,904.19,903.36,2.009]
[1764786782248,1.09517113,904.22,903.36,2.009]
[1764786783249,1.09517113,904.21,903.36,2.009]
[1764786784247,1.09517113,904.2,903.36,2.009]
[1764786784449,1.09517113,904.19,903.36,2.009]
[1764786784649,1.09517113,904.16,903.36,2.009]
[1764786785146,1.09517113,904.08,903.36,2.009]
[1764786787251,1.09517113,904.06,903.36,2.009]
[1764786789255,1.09517113,904.05,903.36,2.009]
[1764786792253,1.09517113,904.06,903.36,2.009]
[1764786797156,1.09517113,904.05,903.36,2.009]
[1764786797456,1.09517113,904.05,903.35,1.557]
[1764786798156,1.09517113,904.04,903.35,1.557]
[1764786799056,1.09517113,904.05,903.35,1.557]
[1764786799253,1.09517113,904.04,903.35,1.557]
[1764786800157,1.09517113,904.03,903.36,2.038]
[1764786802360,1.09517113,903.99,903.36,2.038]
[1764786802561,1.09517113,903.91,903.36,2.038]
[1764786806361,1.09517113,903.92,903.36,2.038]
[1764786808860,1.09517113,903.96,903.36,2.038]
[1764786809064,1.09517113,904.05,903.36,2.038]
[1764786812267,1.09517113,904.07,903.36,2.038]
[1764786812762,1.09517113,904.09,903.36,2.038]
[1764786813162,0.00809733,904.99,903.36,2.038]
[1764786813163,1.09517113,904.12,903.36,2.038]
[1764786813365,1.09517113,904.2,903.39,0.82130702]
[1764786814266,1.09517113,904.2,903.38,0.82130702]
[1764786815166,1.09517113,904.21,903.38,0.82130702]
[1764786815564,1.09517113,904.24,903.43,0.82130702]
[1764786815764,1.09517113,904.28,903.45,0.82130702]
[1764786816164,1.09517113,904.27,903.44,0.82130702]
[1764786816365,1.09517113,904.33,903.49,0.82130702]
[1764786817267,1.09517113,904.35,903.47,0.82130702]
[1764786818068,1.09517113,904.35,903.48,2.025]
[1764786818267,1.09517113,904.36,903.48,2.025]
[1764786819168,1.09517113,904.37,903.48,2.025]
[1764786819463,1.09517113,904.38,903.48,2.025]
[1764786819662,1.09517113,904.39,903.48,2.84630702]
[1764786820367,1.09517113,904.47,903.54,0.82130702]
[1764786821263,1.09517113,904.49,903.53,0.82130702]
[1764786821668,1.09517113,904.48,903.52,0.82130702]
[1764786822263,1.09517113,904.46,903.48,2.84630702]
[1764786822863,1.09517113,904.44,903.48,2.025]
[1764786823264,1.09517113,904.45,903.48,2.025]
[1764786824267,1.09517113,904.46,903.48,2.025]
[1764786825369,1.09517113,904.47,903.48,2.025]
[1764786827267,1.28764901,904.48,903.48,2.025]
[1764786828469,0.19247788,904.48,903.48,2.025]
[1764786831370,1.09517113,904.53,903.48,2.025]
[1764786831575,1.09517113,904.57,903.48,2.025]
[1764786831773,1.09517113,904.58,903.48,2.84630702]
[1764786832172,1.09517113,904.59,903.48,2.025]
[1764786832472,1.09517113,904.64,903.53,0.82130702]
[1764786832972,1.28763038,904.65,903.53,0.82130702]
[1764786833276,0.19245925,904.65,903.52,0.82130702]
[1764786834277,0.19245925,904.65,903.51,0.82130702]
[1764786835172,0.19245925,904.65,903.5,0.82130702]
[1764786836277,0.19245925,904.65,903.49,0.82130702]
[1764786836779,1.09517113,904.7,903.5,0.82130702]
[1764786837278,1.09517113,904.72,903.51,0.82130702]
[1764786837474,1.09517113,904.79,903.58,0.82130702]
[1764786838379,1.09517113,904.8,903.57,0.82130702]
[1764786839181,0.19243105,904.81,903.56,0.82130702]
[1764786840478,0.19243105,904.81,903.57,1.621]
[1764786840677,0.19243105,904.81,903.57,9.71782948]
[1764786848986,0.19243105,904.81,903.57,10.5391365]
[1764786850186,0.19243105,904.81,903.57,9.71782948]
[1764786852396,0.19243105,904.81,903.58,0.82130702]
[1764786853195,0.19243105,904.81,903.57,9.71782948]
[1764786858601,0.19243105,904.81,903.58,1.848]
[1764786864197,0.19243105,904.81,903.58,2.66930702]
[1764786865200,0.19243105,904.81,903.59,0.82130702]
[1764786866001,0.19243105,904.81,903.61,0.82130702]
[1764786866702,0.19243105,904.81,903.58,1.848]
[1764786866703,0.19243105,904.81,903.62,0.82130702]
[1764786868203,0.19243105,904.81,903.65,0.82130702]
[1764786868405,0.19243105,904.81,903.66,0.82130702]
[1764786869202,0.19243105,904.81,903.67,0.82130702]
[1764786869405,1.09517113,904.95,903.76,0.82130702]
[1764786870104,0.19239275,904.98,903.9,0.82130702]
[1764786871203,0.19239275,904.98,903.91,0.82130702]
[1764786871805,0.19239275,904.98,903.9,0.82130702]
[1764786872298,0.19239275,904.98,903.91,0.82130702]
[1764786873304,0.19239275,904.98,903.94,0.82130702]
[1764786874906,0.19239275,904.98,903.98,0.82130702]
[1764786875099,0.19239275,904.98,904.01,0.82130702]
[1764786875301,0.19239275,904.98,904.0,0.82130702]
[1764786876606,0.19239275,904.98,904.01,0.82130702]
[1764786877509,0.19239275,904.98,904.04,0.82130702]
[1764786878203,0.19239275,904.98,904.03,0.82130702]
[1764786879204,0.19239275,904.98,903.7,1.65894078]
[1764786879205,0.19239275,904.98,904.02,0.82130702]
[1764786879807,0.19239275,904.98,904.03,1.354]
[1764786880107,0.19239275,904.98,904.03,2.17530702]
[1764786880307,0.19239275,904.98,904.03,1.354]
[1764786882209,1.09517113,905.23,904.03,1.354]
[1764786882410,0.19233533,905.13,904.09,0.82130702]
[1764786884309,0.19233533,905.13,904.03,1.354]
[1764786884310,0.19233533,905.13,904.08,0.82130702]
[1764786885304,0.19233533,905.13,904.07,0.82130702]
[1764786885907,0.19233533,905.13,904.11,0.82130702]
[1764786886209,0.19233533,905.13,904.1,0.82130702]
[1764786886608,1.09517113,905.38,904.1,0.82130702]
[1764786886808,0.19230291,905.31,904.19,0.82130702]
[1764786887005,0.19230291,905.31,904.03,1.354]
[1764786887006,0.19230291,905.31,904.2,0.82130702]
[1764786887205,0.19230291,905.31,904.19,0.82130702]
[1764786887510,0.19230291,905.31,904.26,0.82130702]
[1764786888311,0.19230291,905.31,904.03,1.354]
[1764786888312,0.19230291,905.31,904.24,0.82130702]
[1764786889105,1.09517113,905.58,904.25,0.82130702]
[1764786889306,0.19225829,905.57,904.27,0.82130702]
[1764786889510,0.19225829,905.57,904.48,0.82130702]
[1764786890009,0.19225829,905.57,904.49,0.82130702]
[1764786890209,0.19225829,905.57,904.46,0.82130702]
[1764786890405,0.19225829,905.57,904.45,0.82130702]
[1764786891209,0.19225829,905.57,904.44,0.82130702]
[1764786892207,0.19225829,905.57,904.42,0.82130702]
[1764786892511,0.19225829,905.57,904.38,0.82130702]
[1764786893311,0.19225829,905.57,904.37,0.82130702]
[1764786894212,0.19225829,905.57,904.36,0.82130702]
[1764786895212,0.19225829,905.57,904.34,0.82130702]
[1764786896212,0.19225829,905.57,904.33,0.82130702]
[1764786896512,0.19225829,905.57,904.0,0.82130702]
[1764786896812,0.19225829,905.57,904.17,0.82130702]
[1764786897212,0.19225829,905.57,904.16,0.82130702]
[1764786897713,0.19225829,905.57,904.15,0.82130702]
[1764786898314,0.19225829,905.57,904.12,0.82130702]
[1764786898613,0.19225829,905.57,904.16,3.614]
[1764786902014,0.19225829,905.57,904.16,4.43530702]
[1764786902214,0.19225829,905.57,904.22,0.82130702]
[1764786902508,0.19225829,905.57,904.26,0.82130702]
[1764786902711,0.19225829,905.57,904.27,0.82130702]
[1764786903613,0.19225829,905.57,904.33,0.82130702]
[1764786904016,0.19225829,905.57,904.34,0.82130702]
[1764786905314,0.19225829,905.57,904.33,0.82130702]
[1764786906316,0.19225829,905.57,904.16,3.614]
[1764786906317,0.19225829,905.57,904.34,0.82130702]
[1764786906717,0.19225829,905.57,904.33,0.82130702]
[1764786908223,1.09517113,906.05,904.32,0.82130702]
[1764786908423,1.09517113,906.15,904.42,0.82130702]
[1764786908617,0.19221157,905.72,904.42,0.82130702]
[1764786909521,0.19221157,905.72,904.43,0.82130702]
[1764786909821,1.09517113,906.18,904.43,0.82130702]
[1764786910220,0.19218237,905.88,904.52,0.82130702]
[1764786911122,0.19218237,905.88,904.51,0.82130702]
[1764786911321,0.19218237,905.88,904.57,0.82130702]
[1764786913224,0.19218237,905.88,904.56,0.82130702]
[1764786913423,0.19218237,905.88,904.58,1.333]
[1764786913620,0.19218237,905.88,904.58,9.94566644]
[1764786931330,1.2873535,905.88,904.58,9.94566644]
[1764786932135,1.09517113,905.87,904.58,9.94566644]
[1764786932332,1.09517113,905.86,904.58,9.94566644]
[1764786933235,1.09517113,905.84,904.58,9.94566644]
[1764786934232,1.09517113,905.82,904.58,9.94566644]
[1764786935338,1.09517113,905.8,904.58,9.94566644]
[1764786936234,1.09517113,905.79,904.58,9.94566644]
[1764786937243,1.09517113,905.78,904.58,9.94566644]
[1764786938238,1.09517113,905.76,904.58,9.94566644]
[1764786939241,1.09517113,905.75,904.58,9.94566644]
[1764786940440,1.09517113,905.73,904.58,9.94566644]
[1764786941139,1.09517113,905.72,904.58,9.94566644]
[1764786942242,1.09517113,905.7,904.58,9.94566644]
[1764786942442,1.09517113,905.67,904.58,9.94566644]
[1764786942643,1.09517113,905.61,904.58,9.94566644]
[1764786943245,0.19218237,905.88,904.58,9.94566644]
[1764786943246,1.09517113,905.59,904.58,9.94566644]
[1764786943745,1.09517113,905.65,904.58,9.94566644]
[1764786944345,1.09517113,905.63,904.58,9.94566644]
[1764786945241,1.09517113,905.61,904.58,9.94566644]
[1764786945442,1.09517113,905.61,904.58,8.61266644]
[1764786946348,1.09517113,905.6,904.58,8.61266644]
[1764786947348,1.09517113,905.59,904.58,8.61266644]
[1764786948147,1.09517113,905.58,904.58,8.61266644]
[1764786948550,1.09517113,905.58,904.59,1.547]
[1764786952354,1.09517113,905.61,904.59,1.547]
[1764786954156,1.09517113,905.6,904.59,1.547]
[1764786954356,1.09517113,905.61,904.59,1.547]
[1764786957261,1.09517113,905.6,904.59,1.547]
[1764786957562,1.09517113,905.54,904.59,1.547]
[1764786959163,1.09517113,905.53,904.59,1.547]
[1764786960063,1.09517113,905.52,904.59,1.547]
[1764786960764,1.09517113,905.42,904.6,1.52]
[1764786961060,1.09517113,905.39,904.6,1.52]
[1764786961259,1.09517113,905.36,904.6,1.52]
[1764786962360,1.09517113,905.37,904.6,1.52]
[1764786963265,1.09517113,905.38,904.6,1.52]
[1764786964362,1.09517113,905.39,904.6,1.52]
[1764786965469,1.09517113,905.4,904.6,1.52]
[1764786965767,1.09517113,905.39,904.6,1.52]
[1764786966163,1.09517113,905.4,904.6,1.52]
[1764786967365,1.09517113,905.41,904.6,1.52]
[1764786968274,1.09517113,905.42,904.6,1.52]
[1764786970870,1.09517113,905.32,904.6,1.52]
[1764786971074,0.19218237,905.88,904.6,1.52]
[1764786971075,1.09517113,905.29,904.6,1.52]
[1764786971276,1.09517113,905.3,904.6,1.52]
[1764786972380,1.09517113,905.31,904.6,1.52]
[1764786975275,1.09517113,905.32,904.6,1.52]
[1764786976174,1.09517113,905.31,904.6,1.52]
[1764786976379,1.09517113,905.32,904.6,1.52]
[1764786977079,1.09517113,905.31,904.6,1.52]
[1764786977476,1.09517113,905.32,904.6,1.52]
[1764786982482,0.19218237,905.88,904.6,1.52]
[1764786982483,1.09517113,905.25,904.6,1.52]
[1764786983079,1.09517113,905.24,904.6,1.52]
[1764786983283,1.09517113,905.25,904.6,1.52]
[1764786984083,1.09517113,905.24,904.6,1.52]
[1764786984377,1.09517113,905.25,904.6,1.52]
[1764786985082,1.09517113,905.24,904.6,1.52]
[1764786986980,1.09517113,905.22,904.6,1.52]
[1764786988084,1.09517113,905.22,904.61,1.648]
[1764786988482,1.09517113,905.2,904.61,1.648]
[1764786988681,1.09517113,905.14,904.61,1.648]
[1764786989184,0.19231832,905.03,904.61,1.648]
[1764786994187,1.09517113,905.02,904.61,1.648]
[1764786994587,1.09517113,905.0,904.61,1.648]
[1764786995188,1.09517113,904.99,904.61,1.648]
[1764786995389,1.09517113,905.01,904.61,1.648]
[1764786996388,1.09517113,905.02,904.61,1.648]
[1764786996886,1.09517113,904.99,904.61,1.648]
[1764786997090,1.09517113,904.95,904.61,1.648]
[1764786997285,1.09517113,904.93,904.61,1.648]
[1764786997989,1.09517113,904.91,904.61,1.648]
[1764786998190,1.09517113,904.91,904.62,1.509]
[1764786998390,1.09517113,904.93,904.62,1.509]
[1764786999386,1.09517113,904.94,904.62,1.509]
[1764787000393,1.09517113,904.95,904.62,1.509]
[1764787001494,1.09517113,904.96,904.62,1.509]
[1764787002399,1.09517113,904.94,904.62,1.509]
[1764787003400,1.09517113,904.95,904.62,1.509]
[1764787004098,1.09517113,904.94,904.62,1.509]
[1764787004299,1.09517113,904.95,904.62,1.509]
[1764787005304,1.09517113,904.96,904.62,1.509]
[1764787006601,1.09517113,904.93,904.62,1.509]
[1764787007507,1.09517113,904.94,904.62,1.509]
[1764787010008,1.09517113,904.95,904.62,1.509]
[1764787010509,1.09517113,904.96,904.62,1.509]
[1764787011108,1.09517113,904.95,904.62,1.509]
[1764787012405,1.09517113,904.92,904.62,1.509]
[1764787014115,1.09517113,904.91,904.62,1.509]
[1764787014408,1.09517113,904.93,904.62,1.509]
[1764787015109,1.09517113,904.92,904.62,1.509]
[1764787016114,1.09517113,904.91,904.62,1.509]
[1764787017309,1.09517113,904.9,904.62,1.509]
[1764787018214,1.09517113,904.89,904.62,1.509]
[1764787020210,1.09517113,904.87,904.62,1.509]
[1764787021015,1.09517113,904.88,904.62,1.509]
[1764787021211,1.09517113,904.9,904.62,1.509]
[1764787022320,1.09517113,904.96,904.62,1.509]
[1764787022614,1.09517113,904.97,904.62,1.509]
[1764787022813,1.09517113,904.99,904.62,1.509]
[1764787023217,1.09517113,904.98,904.62,1.509]
[1764787024518,1.09517113,904.97,904.62,1.509]
[1764787024813,1.09517113,904.98,904.62,1.509]
[1764787025414,1.09517113,904.97,904.62,1.509]